bitfinex/quotes_BTCUSD_20240101
["timestamp","ask_amount","ask_price","bid_price","bid_amount"]
[1704117112885,0.05803734,42777.0,42776.0,0.2538]
[1704117113311,0.06003734,42777.0,42776.0,0.2538]
[1704117114001,0.05803734,42777.0,42776.0,0.2538]
[1704117114848,0.06003734,42777.0,42776.0,0.2538]
[1704117116123,0.304,42777.0,42776.0,0.2538]
[1704117118558,0.38805601,42777.0,42776.0,0.2538]
[1704117123311,0.304,42777.0,42776.0,0.2538]
[1704117124036,0.38805601,42777.0,42776.0,0.2538]
[1704117125437,0.304,42777.0,42776.0,0.2538]
[1704117125659,0.4160769,42777.0,42776.0,0.2538]
[1704117126069,0.304,42777.0,42776.0,0.2538]
[1704117126497,0.4160769,42777.0,42776.0,0.2538]
[1704117127934,0.41627513,42777.0,42776.0,0.2538]
[1704117128593,0.4163083,42777.0,42776.0,0.2538]
[1704117132085,0.1163083,42777.0,42776.0,0.2538]
[1704117132498,0.004,42777.0,42776.0,0.2538]
[1704117132720,0.08823077,42777.0,42776.0,0.2538]
[1704117160852,0.14434391,42777.0,42776.0,0.2538]
[1704117161108,0.11628499,42777.0,42776.0,0.2538]
[1704117161344,0.11628231,42777.0,42776.0,0.2538]
[1704117165050,0.14434391,42777.0,42776.0,0.2538]
[1704117165466,0.14434391,42777.0,42775.0,0.26834875]
[1704117165695,0.14036539,42776.0,42775.0,0.26834875]
[1704117166567,0.004,42777.0,42775.0,0.26834875]
[1704117166773,0.23521711,42777.0,42775.0,0.26834875]
[1704117167043,0.23321711,42777.0,42775.0,0.26834875]
[1704117167281,0.14034522,42776.0,42775.0,0.26834875]
[1704117167740,0.23521711,42777.0,42775.0,0.26834875]
[1704117167989,0.14034663,42776.0,42775.0,0.26834875]
[1704117170308,0.14534663,42776.0,42775.0,0.26834875]
[1704117170519,0.005,42776.0,42775.0,0.26834875]
[1704117170727,0.14534663,42776.0,42775.0,0.26834875]
[1704117170935,0.009,42776.0,42775.0,0.26834875]
[1704117171166,0.14934663,42776.0,42775.0,0.26834875]
[1704117171406,0.14534663,42776.0,42775.0,0.26834875]
[1704117171627,0.14934663,42776.0,42775.0,0.26834875]
[1704117176619,0.12121415,42776.0,42775.0,0.26834875]
[1704117177082,0.14934663,42776.0,42775.0,0.26834875]
[1704117177289,0.12120944,42776.0,42775.0,0.26834875]
[1704117183570,0.11220944,42776.0,42775.0,0.26834875]
[1704117183821,0.11520944,42776.0,42775.0,0.26834875]
[1704117184030,0.11820944,42776.0,42775.0,0.26834875]
[1704117185389,0.35142655,42776.0,42775.0,0.26834875]
[1704117185609,1.02967605,42776.0,42775.0,0.26834875]
[1704117185817,1.49808874,42776.0,42775.0,0.26834875]
[1704117186038,1.32967605,42776.0,42775.0,0.26834875]
[1704117186696,1.32367605,42776.0,42775.0,0.26834875]
[1704117187126,1.33467605,42776.0,42775.0,0.26934875]
[1704117187344,1.33867605,42776.0,42775.0,0.26934875]
[1704117187562,1.32767605,42776.0,42775.0,0.26834875]
[1704117187776,1.33867605,42776.0,42775.0,0.26934875]
[1704117188403,1.33467605,42776.0,42775.0,0.26934875]
[1704117189277,1.33467605,42776.0,42775.0,0.27034875]
[1704117189278,1.39669605,42776.0,42775.0,0.27034875]
[1704117190765,1.34467605,42776.0,42775.0,0.27034875]
[1704117190974,1.56477889,42776.0,42775.0,0.27034875]
[1704117192331,1.39663605,42776.0,42775.0,0.27034875]
[1704117192774,1.56477889,42776.0,42775.0,0.27034875]
[1704117192982,1.39663605,42776.0,42775.0,0.27034875]
[1704117193585,1.40212605,42776.0,42775.0,0.27034875]
[1704117195132,1.38112605,42776.0,42775.0,0.26834875]
[1704117195354,1.84867705,42776.0,42775.0,0.26834875]
[1704117195579,2.03773312,42776.0,42775.0,0.27034875]
[1704117195797,1.86967705,42776.0,42775.0,0.27034875]
[1704117197488,2.03770727,42776.0,42775.0,0.27034875]
[1704117203345,1.86967705,42776.0,42775.0,0.27034875]
[1704117204394,2.03770727,42776.0,42775.0,0.27034875]
[1704117204830,2.03170727,42776.0,42775.0,0.27034875]
[1704117208712,1.09660527,42776.0,42775.0,0.27034875]
[1704117208914,1.56415627,42776.0,42775.0,0.27034875]
[1704117209512,2.03170727,42776.0,42775.0,0.27034875]
[1704117209714,2.03172947,42776.0,42775.0,0.27034875]
[1704117209937,1.86367705,42776.0,42775.0,0.27034875]
[1704117212293,1.39612605,42776.0,42775.0,0.27034875]
[1704117212500,1.86367705,42776.0,42775.0,0.27034875]
[1704117213365,2.37160805,42776.0,42775.0,0.15324875]
[1704117213560,2.56107233,42776.0,42775.0,0.15324875]
[1704117213763,2.66061233,42776.0,42775.0,0.15324875]
[1704117214194,2.55827233,42776.0,42775.0,0.15224875]
[1704117214434,2.36880805,42776.0,42775.0,0.15224875]
[1704117214633,2.38680805,42776.0,42775.0,0.15424875]
[1704117214852,2.4800949,42776.0,42775.0,0.15424875]
[1704117215068,2.4690949,42776.0,42775.0,0.15324875]
[1704117215270,2.5661149,42776.0,42775.0,0.15324875]
[1704117215480,2.49082805,42776.0,42775.0,0.15524875]
[1704117215697,2.39380805,42776.0,42775.0,0.15524875]
[1704117215949,0.29990794,42769.0,42768.0,0.2512]
[1704117216212,1.8846679,42769.0,42768.0,0.2512]
[1704117216420,1.85342105,42769.0,42768.0,0.2512]
[1704117216624,2.02149568,42769.0,42768.0,0.2512]
[1704117217358,1.86442105,42769.0,42768.0,0.2522]
[1704117217574,1.86991105,42769.0,42768.0,0.2522]
[1704117218016,1.87991105,42769.0,42768.0,0.2532]
[1704117218240,2.04798568,42769.0,42768.0,0.2532]
[1704117218476,1.87991105,42769.0,42768.0,0.2532]
[1704117222841,2.08470962,42769.0,42768.0,0.2532]
[1704117223051,1.87991105,42769.0,42768.0,0.2532]
[1704117224156,2.04798568,42769.0,42768.0,0.2532]
[1704117227562,1.98594568,42769.0,42768.0,0.2532]
[1704117227768,1.85314946,42769.0,42768.0,0.2532]
[1704117227971,1.81787105,42769.0,42768.0,0.2532]
[1704117228174,1.86731105,42769.0,42768.0,0.2532]
[1704117228382,1.83628463,42769.0,42768.0,0.2532]
[1704117228822,1.86412239,42769.0,42768.0,0.2532]
[1704117229034,2.03219702,42769.0,42768.0,0.2532]
[1704117229244,1.98275702,42769.0,42768.0,0.2532]
[1704117231415,1.81468239,42769.0,42768.0,0.2532]
[1704117233937,1.85992239,42769.0,42768.0,0.2532]
[1704117234493,1.81468239,42769.0,42768.0,0.2532]
[1704117235610,1.85986239,42769.0,42768.0,0.2532]
[1704117235892,1.81468239,42769.0,42768.0,0.2532]
[1704117236101,1.85962239,42769.0,42768.0,0.2532]
[1704117236309,1.81468239,42769.0,42768.0,0.2532]
[1704117237381,1.98291201,42769.0,42768.0,0.2532]
[1704117237810,1.51528401,42769.0,42768.0,0.2532]
[1704117238003,1.98291201,42769.0,42768.0,0.2532]
[1704117239864,1.81468239,42769.0,42768.0,0.2532]
[1704117240691,1.90833639,42769.0,42768.0,0.2532]
[1704117240901,2.07656601,42769.0,42768.0,0.2532]
[1704117241344,1.44070839,42769.0,42768.0,0.2532]
[1704117241527,2.07656601,42769.0,42768.0,0.2532]
[1704117242655,1.73945487,42769.0,42768.0,0.2532]
[1704117242866,0.88989136,42769.0,42768.0,0.2532]
[1704117243089,0.83380029,42769.0,42768.0,0.2532]
[1704117243737,0.74968287,42769.0,42768.0,0.2532]
[1704117243958,0.54470143,42769.0,42768.0,0.28431848]
[1704117244166,0.488628,42769.0,42768.0,0.28431848]
[1704117244382,0.021,42769.0,42768.0,0.28431848]
[1704117244602,0.021,42769.0,42768.0,0.29462515]
[1704117244839,0.05607343,42772.0,42771.0,0.03111848]
[1704117245052,0.04366287,42772.0,42771.0,0.03111848]
[1704117245269,0.04366287,42772.0,42771.0,0.04133419]
[1704117245476,0.55169242,42774.0,42773.0,0.03111848]
[1704117245893,0.55169242,42774.0,42773.0,0.04132084]
[1704117246330,0.11215947,42775.0,42773.0,0.04132084]
[1704117246331,0.08411742,42775.0,42773.0,0.04132084]
[1704117246556,0.08411742,42775.0,42774.0,0.03111848]
[1704117246764,0.55167942,42775.0,42774.0,0.03111848]
[1704117246976,0.55167942,42775.0,42774.0,0.04131416]
[1704117247667,0.55167942,42775.0,42774.0,0.03111848]
[1704117247668,0.85167942,42775.0,42774.0,0.03111848]
[1704117248057,0.467562,42775.0,42774.0,0.03111848]
[1704117248296,0.008,42775.0,42774.0,0.03211848]
[1704117248513,0.008,42775.0,42774.0,0.07892848]
[1704117248947,0.467535,42778.0,42774.0,0.07792848]
[1704117249131,0.467535,42778.0,42777.0,0.03111848]
[1704117249690,0.2123747,42782.0,42777.0,0.03111848]
[1704117249894,0.467535,42778.0,42777.0,0.03111848]
[1704117252028,0.471535,42778.0,42777.0,0.03111848]
[1704117258387,0.471535,42778.0,42772.0,0.04681]
[1704117258388,0.471535,42778.0,42775.0,0.03111848]
[1704117258599,0.46755,42777.0,42775.0,0.03111848]
[1704117260721,0.46755,42777.0,42774.0,0.07792848]
[1704117261371,0.46855,42777.0,42775.0,0.03111848]
[1704117261581,0.46755,42777.0,42775.0,0.03111848]
[1704117262027,0.46855,42777.0,42775.0,0.03111848]
[1704117262659,0.46755,42777.0,42775.0,0.03111848]
[1704117263940,0.25621711,42781.0,42774.0,0.04681]
[1704117263941,0.70076811,42776.0,42774.0,0.04681]
[1704117264158,0.70076811,42776.0,42772.0,0.03111848]
[1704117264159,0.467562,42775.0,42772.0,0.03111848]
[1704117264364,0.467577,42774.0,42772.0,0.03111848]
[1704117265884,0.467577,42774.0,42772.0,0.03511848]
[1704117266099,0.467577,42774.0,42772.0,0.03911848]
[1704117266563,0.467577,42774.0,42772.0,0.03511848]
[1704117267653,0.467577,42774.0,42773.0,0.2529]
[1704117268539,0.72379411,42774.0,42771.0,0.04681]
[1704117268757,0.467595,42772.0,42769.0,0.2529]
[1704117269433,0.70082911,42771.0,42769.0,0.2529]
[1704117270242,0.70082911,42771.0,42769.0,0.2549]
[1704117271514,0.70082911,42771.0,42769.0,0.2529]
[1704117271949,0.70482911,42771.0,42770.0,0.03111848]
[1704117272382,0.70782911,42771.0,42770.0,0.03111848]
[1704117272796,0.70482911,42771.0,42770.0,0.03111848]
[1704117272964,0.70782911,42771.0,42770.0,0.03111848]
[1704117273193,0.70382911,42771.0,42770.0,0.03111848]
[1704117273568,0.70782911,42771.0,42770.0,0.03111848]
[1704117275161,0.24021711,42771.0,42770.0,0.03111848]
[1704117275372,0.70782811,42771.0,42770.0,0.03111848]
[1704117276631,0.474611,42771.0,42770.0,0.03111848]
[1704117276896,0.007,42771.0,42770.0,0.03111848]
[1704117277156,0.007,42771.0,42770.0,0.12574848]
[1704117278075,0.004,42771.0,42770.0,0.12574848]
[1704117278536,0.007,42771.0,42770.0,0.12574848]
[1704117278756,0.003,42771.0,42770.0,0.12574848]
[1704117279008,0.3,42776.0,42773.0,0.03111848]
[1704117279239,0.23321711,42775.0,42773.0,0.03111848]
[1704117279502,0.3,42776.0,42775.0,0.03111848]
[1704117279722,0.3,42778.0,42777.0,0.03111848]
[1704117280984,0.3,42778.0,42777.0,0.03211848]
[1704117280985,0.307,42778.0,42777.0,0.03211848]
[1704117281567,0.313,42778.0,42777.0,0.03211848]
[1704117281828,0.013,42778.0,42777.0,0.03211848]
[1704117281993,0.307,42778.0,42777.0,0.03211848]
[1704117282204,0.3,42778.0,42777.0,0.03111848]
[1704117282416,0.305,42778.0,42777.0,0.03111848]
[1704117282818,0.31,42778.0,42777.0,0.03111848]
[1704117283394,0.01,42778.0,42777.0,0.03111848]
[1704117283779,0.31,42778.0,42777.0,0.03111848]
[1704117284999,0.77753,42778.0,42777.0,0.03111848]
[1704117286090,0.77253,42778.0,42777.0,0.03111848]
[1704117286908,0.76753,42778.0,42777.0,0.03111848]
[1704117287350,0.77153,42778.0,42777.0,0.03111848]
[1704117287981,0.77653,42778.0,42777.0,0.03111848]
[1704117288393,0.77153,42778.0,42777.0,0.03111848]
[1704117288596,0.77453,42778.0,42777.0,0.03111848]
[1704117291283,0.83042535,42778.0,42777.0,0.03111848]
[1704117304365,0.007,42778.0,42777.0,0.03111848]
[1704117304571,0.007,42778.0,42777.0,0.08583848]
[1704117304784,0.007,42778.0,42777.0,0.13264848]
[1704117305427,0.007,42778.0,42777.0,0.14264848]
[1704117305847,0.004,42778.0,42777.0,0.14264848]
[1704117306726,0.00020775,42784.0,42783.0,0.03111848]
[1704117307967,0.00320775,42784.0,42783.0,0.03111848]
[1704117308601,0.00020775,42784.0,42783.0,0.03111848]
[1704117308803,0.00220775,42784.0,42783.0,0.03111848]
[1704117309420,0.00620775,42784.0,42783.0,0.03111848]
[1704117309627,0.00220775,42784.0,42783.0,0.03111848]
[1704117310036,0.00420775,42784.0,42783.0,0.03111848]
[1704117321517,0.00420775,42784.0,42782.0,0.03111848]
[1704117321717,0.00420775,42784.0,42783.0,0.03111848]
[1704117322488,0.00420775,42784.0,42780.0,0.04681]
[1704117322489,0.70488886,42784.0,42780.0,0.04681]
[1704117322699,0.467497,42781.0,42780.0,0.04681]
[1704117322916,0.70071411,42781.0,42780.0,0.04681]
[1704117324204,0.70071411,42781.0,42780.0,0.04881]
[1704117324750,0.70071411,42781.0,42780.0,0.05181]
[1704117326834,0.70071411,42781.0,42780.0,0.04981]
[1704117327250,0.70071411,42781.0,42780.0,0.04781]
[1704117327458,0.70071411,42781.0,42780.0,0.04881]
[1704117327459,0.23321711,42781.0,42780.0,0.04881]
[1704117328103,0.23321711,42781.0,42780.0,0.04781]
[1704117329400,0.23321711,42781.0,42780.0,0.04881]
[1704117336191,0.23321711,42781.0,42780.0,0.05881]
[1704117341548,0.23321711,42781.0,42780.0,0.04881]
[1704117341790,0.23321711,42781.0,42780.0,0.05881]
[1704117341995,0.23321711,42781.0,42780.0,0.04881]
[1704117343354,0.05589535,42783.0,42782.0,0.03111848]
[1704117343840,0.00020775,42784.0,42783.0,0.03111848]
[1704117343841,0.0561031,42784.0,42783.0,0.03111848]
[1704117344076,0.00020775,42784.0,42783.0,0.03111848]
[1704117344760,0.0561031,42784.0,42783.0,0.03111848]
[1704117345168,0.00020775,42784.0,42783.0,0.03111848]
[1704117345400,0.0561031,42784.0,42783.0,0.03111848]
[1704117345572,0.00020775,42784.0,42783.0,0.03111848]
[1704117346804,0.00720775,42784.0,42783.0,0.03111848]
[1704117347009,0.00320775,42784.0,42783.0,0.03111848]
[1704117347427,0.00720775,42784.0,42783.0,0.03111848]
[1704117347633,0.00320775,42784.0,42783.0,0.03111848]
[1704117348030,0.00520775,42784.0,42783.0,0.03111848]
[1704117348418,0.0581031,42784.0,42783.0,0.03111848]
[1704117348756,0.00520775,42784.0,42783.0,0.03111848]
[1704117349178,0.00220775,42784.0,42783.0,0.03111848]
[1704117349610,0.0601031,42784.0,42783.0,0.03111848]
[1704117349839,0.00420775,42784.0,42783.0,0.03111848]
[1704117350603,0.0601031,42784.0,42783.0,0.03111848]
[1704117350803,0.08832517,42784.0,42783.0,0.03111848]
[1704117351294,0.06030048,42784.0,42783.0,0.03111848]
[1704117351532,0.08832517,42784.0,42783.0,0.03111848]
[1704117352199,0.00420775,42784.0,42783.0,0.03111848]
[1704117352624,0.06030099,42784.0,42783.0,0.03111848]
[1704117353044,0.08832517,42784.0,42783.0,0.03111848]
[1704117353259,0.14445085,42784.0,42783.0,0.03111848]
[1704117353679,0.11639755,42784.0,42783.0,0.03111848]
[1704117354312,0.11639783,42784.0,42783.0,0.03111848]
[1704117354526,0.00420775,42784.0,42783.0,0.03111848]
[1704117354737,0.08834987,42784.0,42783.0,0.03111848]
[1704117366347,0.00420775,42784.0,42783.0,0.03111848]
[1704117366552,0.08836988,42784.0,42783.0,0.03111848]
[1704117367392,0.11639783,42784.0,42783.0,0.03111848]
[1704117370549,0.08837904,42784.0,42783.0,0.03111848]
[1704117372667,0.00420775,42784.0,42783.0,0.03111848]
[1704117372858,0.08837904,42784.0,42783.0,0.03111848]
[1704117373302,0.1122285,42786.0,42783.0,0.03111848]
[1704117373517,0.1122285,42785.0,42783.0,0.03111848]
[1704117373735,0.1122285,42785.0,42784.0,0.2599]
[1704117374363,0.1122285,42786.0,42784.0,0.2599]
[1704117374939,0.1162285,42786.0,42784.0,0.2599]
[1704117375539,0.1122285,42786.0,42784.0,0.2599]
[1704117375953,0.1122285,42785.0,42784.0,0.2599]
[1704117376569,0.1122285,42786.0,42784.0,0.2599]
[1704117376976,0.1172285,42786.0,42784.0,0.2599]
[1704117377390,0.1162285,42786.0,42784.0,0.2599]
[1704117377603,0.003,42785.0,42784.0,0.2599]
[1704117377822,0.1162285,42786.0,42784.0,0.2599]
[1704117378245,0.1212285,42786.0,42784.0,0.2599]
[1704117378454,0.1212285,42786.0,42785.0,0.03111848]
[1704117378455,0.1172285,42786.0,42785.0,0.03111848]
[1704117378884,0.005,42786.0,42785.0,0.03111848]
[1704117379332,0.467432,42787.0,42785.0,0.03111848]
[1704117380199,0.005,42786.0,42785.0,0.03111848]
[1704117380397,0.14530172,42786.0,42785.0,0.03111848]
[1704117380615,0.14030172,42786.0,42785.0,0.03111848]
[1704117380834,0.467432,42787.0,42786.0,0.03111848]
[1704117381076,0.767432,42787.0,42786.0,0.03111848]
[1704117381289,0.773432,42787.0,42786.0,0.03111848]
[1704117382402,0.767432,42787.0,42786.0,0.03111848]
[1704117383053,0.767432,42787.0,42782.0,0.03111848]
[1704117383054,1.00064911,42787.0,42782.0,0.03111848]
[1704117383271,0.08418709,42783.0,42780.0,0.08792848]
[1704117383493,0.11224946,42784.0,42780.0,0.08792848]
[1704117383713,0.05612641,42781.0,42780.0,0.08792848]
[1704117385019,0.05612641,42781.0,42780.0,0.07792848]
[1704117385797,0.05612641,42781.0,42780.0,0.07992848]
[1704117386372,0.11224946,42782.0,42780.0,0.07992848]
[1704117386611,0.11224946,42782.0,42781.0,0.03111848]
[1704117386818,0.14031183,42782.0,42780.0,0.04881]
[1704117387167,0.11226683,42782.0,42780.0,0.05181]
[1704117387373,0.11226546,42782.0,42781.0,0.03111848]
[1704117388071,0.1122575,42782.0,42781.0,0.03111848]
[1704117389950,0.13996749,42783.0,42781.0,0.03111848]
[1704117390202,0.34547461,42783.0,42781.0,0.03111848]
[1704117390412,0.1122575,42782.0,42781.0,0.03111848]
[1704117390846,0.34547461,42783.0,42781.0,0.03111848]
[1704117391062,0.08418106,42782.0,42781.0,0.03111848]
[1704117391914,0.31739817,42783.0,42781.0,0.03111848]
[1704117392304,0.31939817,42783.0,42781.0,0.03111848]
[1704117392558,0.08418106,42782.0,42781.0,0.03111848]
[1704117394116,0.05611693,42782.0,42781.0,0.03111848]
[1704117395805,0.05611693,42782.0,42781.0,0.03311848]
[1704117400185,0.05611693,42783.0,42782.0,0.03111848]
[1704117400610,0.08418106,42784.0,42783.0,0.03111848]
[1704117400838,0.08418474,42784.0,42783.0,0.03111848]
[1704117401049,0.1122575,42785.0,42783.0,0.03111848]
[1704117401257,0.08418446,42784.0,42783.0,0.03111848]
[1704117401913,0.14031183,42786.0,42785.0,0.03111848]
[1704117403212,0.14531183,42786.0,42785.0,0.03111848]
[1704117404443,0.14931183,42786.0,42785.0,0.03111848]
[1704117414535,0.009,42786.0,42785.0,0.03111848]
[1704117414730,0.12124738,42786.0,42785.0,0.03111848]
[1704117415733,0.12124577,42786.0,42785.0,0.03111848]
[1704117415908,0.14931183,42786.0,42785.0,0.03111848]
[1704117420901,0.009,42786.0,42785.0,0.03111848]
[1704117421530,0.14931183,42786.0,42785.0,0.03111848]
[1704117422496,0.14931183,42786.0,42782.0,0.03111848]
[1704117422701,0.05612594,42783.0,42782.0,0.03111848]
[1704117423190,0.05612594,42783.0,42781.0,0.2701]
[1704117423381,0.08418981,42784.0,42781.0,0.2701]
[1704117423587,0.08418981,42784.0,42783.0,0.03111848]
[1704117425322,0.08518981,42784.0,42783.0,0.03111848]
[1704117425743,0.08718981,42784.0,42783.0,0.03111848]
[1704117429618,0.05912488,42784.0,42783.0,0.03111848]
[1704117429848,0.003,42784.0,42783.0,0.03111848]
[1704117430050,0.05912415,42784.0,42783.0,0.03111848]
[1704117430453,0.003,42784.0,42783.0,0.03111848]
[1704117430895,0.05912306,42784.0,42783.0,0.03111848]
[1704117433695,0.003,42784.0,42783.0,0.03111848]
[1704117433926,0.05912306,42784.0,42783.0,0.03111848]
[1704117434177,0.003,42784.0,42783.0,0.03111848]
[1704117434406,0.05912306,42784.0,42783.0,0.03111848]
[1704117436039,0.08657172,42784.0,42783.0,0.03111848]
[1704117443563,0.03044866,42784.0,42783.0,0.03111848]
[1704117443778,0.11463847,42784.0,42783.0,0.03111848]
[1704117443984,0.03044866,42784.0,42783.0,0.03111848]
[1704117444625,0.08657838,42784.0,42783.0,0.03111848]
[1704117445069,0.11463847,42784.0,42783.0,0.03111848]
[1704117449506,0.08657894,42784.0,42783.0,0.03111848]
[1704117453208,0.03044866,42784.0,42783.0,0.03111848]
[1704117453342,0.003,42784.0,42783.0,0.03111848]
[1704117453719,0.003,42784.0,42783.0,0.28831848]
[1704117462415,0.003,42784.0,42783.0,0.29831848]
[1704117462632,0.003,42784.0,42783.0,0.84727348]
[1704117463285,0.003,42784.0,42783.0,1.73227059]
[1704117463707,0.003,42784.0,42783.0,1.78831033]
[1704117463914,0.003,42784.0,42783.0,1.73227059]
[1704117464826,0.003,42784.0,42783.0,1.78831033]
[1704117465240,0.003,42784.0,42783.0,1.73227059]
[1704117465501,0.003,42784.0,42783.0,1.78831033]
[1704117465915,0.003,42784.0,42783.0,1.73227059]
[1704117469150,0.003,42784.0,42783.0,1.26479559]
[1704117469364,0.003,42784.0,42783.0,1.73227059]
[1704117472649,0.003,42784.0,42783.0,1.26479559]
[1704117472855,0.003,42784.0,42783.0,1.73227059]
[1704117473076,0.002,42784.0,42783.0,1.73227059]
[1704117486687,0.002,42784.0,42783.0,1.40115211]
[1704117486904,0.002,42784.0,42783.0,0.59007348]
[1704117487960,0.002,42784.0,42783.0,0.04111848]
[1704117488595,0.002,42784.0,42783.0,0.09655848]
[1704117492149,0.002,42784.0,42783.0,0.56403348]
[1704117500075,0.002,42784.0,42783.0,1.03595348]
[1704117501801,0.002,42784.0,42783.0,0.58965348]
[1704117501988,0.002,42784.0,42783.0,0.56043348]
[1704117504620,0.002,42784.0,42783.0,0.49859348]
[1704117506982,0.002,42784.0,42783.0,0.50859348]
[1704117507211,0.002,42784.0,42783.0,0.49859348]
[1704117508888,0.002,42784.0,42783.0,0.50859348]
[1704117509754,0.002,42784.0,42783.0,0.56061348]
[1704117509962,0.002,42784.0,42783.0,0.50859348]
[1704117510156,0.002,42784.0,42783.0,0.56067348]
[1704117511224,0.002,42784.0,42783.0,0.09319848]
[1704117511451,0.002,42784.0,42783.0,0.56067348]
[1704117514688,0.002,42784.0,42783.0,0.09319848]
[1704117514954,0.002,42784.0,42783.0,0.56067348]
[1704117517534,0.002,42784.0,42783.0,0.55067348]
[1704117517740,0.002,42784.0,42783.0,0.56067348]
[1704117521770,0.002,42784.0,42783.0,0.55067348]
[1704117521978,0.002,42784.0,42783.0,0.56067348]
[1704117526542,0.002,42784.0,42783.0,0.55067348]
[1704117526756,0.002,42784.0,42783.0,0.56067348]
[1704117526968,0.002,42784.0,42783.0,0.50859348]
[1704117527911,0.002,42784.0,42783.0,0.56205348]
[1704117539240,0.002,42784.0,42783.0,0.49859348]
[1704117539689,0.08618981,42784.0,42783.0,0.03111848]
[1704117539898,0.1142646,42784.0,42783.0,0.03111848]
[1704117540170,0.14231183,42784.0,42783.0,0.03111848]
[1704117542311,0.002,42784.0,42783.0,0.03111848]
[1704117542686,0.11422767,42784.0,42783.0,0.03111848]
[1704117543115,0.11422767,42784.0,42782.0,0.04111848]
[1704117543316,0.08415252,42783.0,42782.0,0.03111848]
[1704117543580,0.08415252,42783.0,42782.0,0.04111848]
[1704117543934,0.08415263,42783.0,42782.0,0.04111848]
[1704117544145,0.08415263,42783.0,42782.0,0.03111848]
[1704117544468,0.08613718,42784.0,42783.0,0.03111848]
[1704117544686,0.08613718,42784.0,42782.0,0.04111848]
[1704117545339,0.08613718,42784.0,42783.0,0.03111848]
[1704117545550,0.08613718,42784.0,42782.0,0.04111848]
[1704117545774,0.08413718,42784.0,42782.0,0.03111848]
[1704117545997,0.70069211,42783.0,42777.0,0.03111848]
[1704117546207,0.05607089,42778.0,42777.0,0.03111848]
[1704117546439,0.08413965,42778.0,42776.0,0.70391]
[1704117546634,0.0841111,42777.0,42776.0,0.70391]
[1704117546866,0.0841111,42777.0,42776.0,0.04681]
[1704117547321,0.0841111,42778.0,42776.0,0.04681]
[1704117547535,0.05605051,42777.0,42775.0,0.03111848]
[1704117547978,0.05605051,42776.0,42775.0,0.03111848]
[1704117548378,0.05605051,42777.0,42773.0,0.05681]
[1704117548596,0.05605051,42777.0,42775.0,0.03111848]
[1704117548800,0.05605051,42776.0,42775.0,0.03111848]
[1704117549249,0.05605051,42777.0,42774.0,0.03111848]
[1704117549451,0.05605051,42777.0,42775.0,0.001]
[1704117549654,0.05605051,42777.0,42774.0,0.03111848]
[1704117549864,0.05605051,42777.0,42773.0,0.05681]
[1704117549865,0.05605051,42778.0,42777.0,0.03111848]
[1704117550078,0.3,42778.0,42777.0,0.03111848]
[1704117550943,0.35605051,42778.0,42777.0,0.03111848]
[1704117551155,0.05605051,42778.0,42777.0,0.03111848]
[1704117551304,0.05705051,42778.0,42777.0,0.03111848]
[1704117551506,0.38562352,42778.0,42777.0,0.03111848]
[1704117552368,0.35705051,42778.0,42777.0,0.03111848]
[1704117553751,0.05705051,42778.0,42777.0,0.03111848]
[1704117554810,0.001,42778.0,42777.0,0.03111848]
[1704117556723,0.003,42778.0,42777.0,0.03111848]
[1704117558448,0.303,42778.0,42777.0,0.03111848]
[1704117559610,0.303,42778.0,42776.0,0.03111848]
[1704117559611,0.77053,42778.0,42776.0,0.03111848]
[1704117559804,0.467548,42777.0,42776.0,0.03111848]
[1704117560605,0.467548,42777.0,42773.0,0.08792848]
[1704117560985,0.467548,42777.0,42773.0,0.05681]
[1704117561147,0.467548,42777.0,42773.0,0.08792848]
[1704117561343,0.467548,42777.0,42773.0,0.05681]
[1704117561596,0.467548,42777.0,42773.0,0.08792848]
[1704117562957,0.467548,42777.0,42776.0,0.03111848]
[1704117564660,0.467548,42777.0,42773.0,0.08792848]
[1704117564862,0.468548,42777.0,42776.0,0.03111848]
[1704117565937,0.468548,42777.0,42773.0,0.05681]
[1704117565938,0.468548,42777.0,42773.0,0.08792848]
[1704117566122,0.470548,42777.0,42773.0,0.08792848]
[1704117566546,0.469548,42777.0,42773.0,0.05681]
[1704117566756,0.467552,42776.0,42773.0,0.08792848]
[1704117568494,0.467552,42776.0,42773.0,0.05681]
[1704117568710,0.467552,42776.0,42773.0,0.08792848]
[1704117569347,0.467552,42776.0,42775.0,0.03111848]
[1704117578462,0.467552,42776.0,42773.0,0.05681]
[1704117578463,0.70076911,42776.0,42773.0,0.03111848]
[1704117578702,0.467573,42774.0,42772.0,0.29941848]
[1704117578939,0.23321711,42775.0,42773.0,0.03111848]
[1704117579380,0.467573,42774.0,42773.0,0.03111848]
[1704117579537,0.467573,42774.0,42772.0,0.2683]
[1704117579813,0.23321711,42775.0,42773.0,0.03111848]
[1704117579990,0.473573,42774.0,42773.0,0.03111848]
[1704117580362,0.467573,42774.0,42773.0,0.03111848]
[1704117580642,0.473573,42774.0,42773.0,0.03211848]
[1704117580826,0.479573,42774.0,42773.0,0.03211848]
[1704117581157,0.473573,42774.0,42773.0,0.03211848]
[1704117581580,0.479573,42774.0,42773.0,0.03211848]
[1704117585455,0.53551782,42774.0,42773.0,0.03211848]
[1704117586113,0.479573,42774.0,42773.0,0.03211848]
[1704117586729,0.53551782,42774.0,42773.0,0.03211848]
[1704117587232,0.012,42774.0,42773.0,0.04211848]
[1704117587408,0.012,42774.0,42773.0,0.08987848]
[1704117587617,0.012,42774.0,42773.0,0.04211848]
[1704117594048,0.012,42774.0,42773.0,0.03211848]
[1704117594254,0.012,42774.0,42773.0,0.04211848]
[1704117598429,0.06794482,42774.0,42773.0,0.04211848]
[1704117599272,0.06794482,42774.0,42773.0,0.001]
[1704117599273,0.12388964,42774.0,42773.0,0.001]
[1704117599487,0.012,42774.0,42773.0,0.001]
[1704117599691,0.15186205,42774.0,42773.0,0.001]
[1704117600117,0.24521711,42774.0,42773.0,0.001]
[1704117600331,1.28167163,42774.0,42773.0,0.001]
[1704117600540,1.30467163,42774.0,42773.0,0.001]
[1704117602015,1.47303414,42774.0,42773.0,0.001]
[1704117602430,1.30467163,42774.0,42773.0,0.001]
[1704117602656,1.47298478,42774.0,42773.0,0.001]
[1704117603176,1.30467163,42774.0,42773.0,0.001]
[1704117607131,1.44486452,42774.0,42773.0,0.001]
[1704117607983,1.44485576,42774.0,42773.0,0.001]
[1704117610086,1.15297424,42774.0,42773.0,0.001]
[1704117610291,0.42413227,42774.0,42773.0,0.03211848]
[1704117611638,0.39609182,42774.0,42773.0,0.03211848]